[Event "*** MasterClass Titled Tuesday Blitz"]
[Site "Chess.com"]
[Date "2017.11.07"]
[Round "7"]
[White "Sanan_Sjugirov"]
[Black "Buffy7"]
[Result "1-0"]
[WhiteElo "2655"]
[BlackElo "2488"]
[TimeControl "180+2"]
[EndTime "15:43:18 PST"]
[Termination "Sanan_Sjugirov won by resignation"]

1. d4 {[%clk 0:03:01.9]} 1... Nf6 {[%clk 0:03:00.7]} 2. Nf3 {[%clk 0:03:01.9]}
2... g6 {[%clk 0:03:02]} 3. Bg5 {[%clk 0:03:02.5]} 3... Bg7 {[%clk 0:03:02.8]}
4. Nbd2 {[%clk 0:03:03.8]} 4... O-O {[%clk 0:03:04]} 5. e3 {[%clk 0:03:04.6]}
5... d6 {[%clk 0:03:00.2]} 6. Bd3 {[%clk 0:03:01]} 6... Nbd7 {[%clk 0:02:55.1]}
7. O-O {[%clk 0:03:01.6]} 7... e5 {[%clk 0:02:54.7]} 8. c3 {[%clk 0:02:59.4]}
8... Qe7 {[%clk 0:02:50.6]} 9. e4 {[%clk 0:03:00]} 9... Re8 {[%clk 0:02:43.1]}
10. Re1 {[%clk 0:03:00.6]} 10... Qf8 {[%clk 0:02:43.1]} 11. a4 {[%clk
0:02:58.2]} 11... Bh6 {[%clk 0:02:42.1]} 12. Bxh6 {[%clk 0:02:57.3]} 12... Qxh6
{[%clk 0:02:44]} 13. a5 {[%clk 0:02:56.6]} 13... a6 {[%clk 0:02:42.3]} 14. b4
{[%clk 0:02:56.3]} 14... Nf8 {[%clk 0:02:41.6]} 15. Qb3 {[%clk 0:02:44.3]} 15...
Be6 {[%clk 0:02:23.9]} 16. d5 {[%clk 0:02:31.6]} 16... Bd7 {[%clk 0:02:23.3]}
17. c4 {[%clk 0:02:29.5]} 17... g5 {[%clk 0:02:02.9]} 18. Nf1 {[%clk 0:02:30.5]}
18... g4 {[%clk 0:02:03.1]} 19. N3d2 {[%clk 0:02:31.4]} 19... Ng6 {[%clk
0:02:02.7]} 20. Re3 {[%clk 0:01:55.4]} 20... Qg5 {[%clk 0:01:58.4]} 21. c5
{[%clk 0:01:50.6]} 21... Nf4 {[%clk 0:01:57.9]} 22. cxd6 {[%clk 0:01:47.3]}
22... cxd6 {[%clk 0:01:59.8]} 23. Nc4 {[%clk 0:01:48.1]} 23... Nxd3 {[%clk
0:01:49.6]} 24. Qxd3 {[%clk 0:01:48.2]} 24... Bb5 {[%clk 0:01:49.9]} 25. Qb3
{[%clk 0:01:49]} 25... Bxc4 {[%clk 0:01:38.1]} 26. Qxc4 {[%clk 0:01:50.9]} 26...
Rac8 {[%clk 0:01:39.7]} 27. Qe2 {[%clk 0:01:50.1]} 27... Rc7 {[%clk 0:01:39.1]}
28. Ng3 {[%clk 0:01:38.1]} 28... Rec8 {[%clk 0:01:39.7]} 29. Re1 {[%clk
0:01:37.8]} 29... h5 {[%clk 0:01:22.6]} 30. f3 {[%clk 0:01:19]} 30... Rc2 {[%clk
0:01:14]} 31. Qf1 {[%clk 0:01:20]} 31... h4 {[%clk 0:01:14.6]} 32. Nf5 {[%clk
0:01:20.9]} 32... h3 {[%clk 0:01:15.8]} 33. R3e2 {[%clk 0:01:01.5]} 33... Rxe2
{[%clk 0:01:00.4]} 34. Qxe2 {[%clk 0:01:01.8]} 34... Rc1 {[%clk 0:01:01.9]} 35.
fxg4 {[%clk 0:00:51.3]} 35... Nxg4 {[%clk 0:00:38]} 36. gxh3 {[%clk 0:00:46.7]}
36... Nf6+ {[%clk 0:00:15.8]} 37. Ng3 {[%clk 0:00:40.2]} 37... Qf4 {[%clk
0:00:14.2]} 38. Rxc1 {[%clk 0:00:36.9]} 38... Qxc1+ {[%clk 0:00:16.1]} 39. Kg2
{[%clk 0:00:38.4]} 39... Qb1 {[%clk 0:00:16.3]} 40. h4 {[%clk 0:00:33.5]} 40...
Qxb4 {[%clk 0:00:16.9]} 41. Qf3 {[%clk 0:00:34.5]} 41... Qd2+ {[%clk 0:00:17.9]}
42. Kh3 {[%clk 0:00:35.3]} 42... Qf4 {[%clk 0:00:19.5]} 43. Qe2 {[%clk
0:00:33.1]} 43... Kg7 {[%clk 0:00:18.6]} 44. Nf5+ {[%clk 0:00:31.7]} 44... Kf8
{[%clk 0:00:19.8]} 45. Nxd6 {[%clk 0:00:30.2]} 45... Ke7 {[%clk 0:00:21.2]} 46.
Nf5+ {[%clk 0:00:30.9]} 46... Kd7 {[%clk 0:00:22.7]} 47. Ng3 {[%clk 0:00:31.7]}
47... Kc7 {[%clk 0:00:22.1]} 48. h5 {[%clk 0:00:30.9]} 48... Kb8 {[%clk
0:00:22.9]} 49. Kg2 {[%clk 0:00:20.3]} 49... Qg5 {[%clk 0:00:23.1]} 50. Kh3
{[%clk 0:00:15.1]} 50... Qf4 {[%clk 0:00:24]} 51. Kg2 {[%clk 0:00:12.5]} 51...
Qg5 {[%clk 0:00:25.2]} 52. Qf3 {[%clk 0:00:13.6]} 52... Kc7 {[%clk 0:00:21.4]}
53. Kh3 {[%clk 0:00:10]} 53... Kd8 {[%clk 0:00:19.1]} 54. Qf5 {[%clk 0:00:08.6]}
54... Qxf5+ {[%clk 0:00:19.9]} 55. Nxf5 {[%clk 0:00:09.3]} 55... Nxe4 {[%clk
0:00:21.3]} 56. h6 {[%clk 0:00:10.3]} 56... Nf6 {[%clk 0:00:22.5]} 57. Kh4
{[%clk 0:00:09.7]} 57... Kd7 {[%clk 0:00:22.4]} 58. Kg5 {[%clk 0:00:06.3]} 58...
Nh7+ {[%clk 0:00:23.5]} 59. Kg4 {[%clk 0:00:07.7]} 59... Kc7 {[%clk 0:00:25]}
60. Kf3 {[%clk 0:00:07.5]} 60... b6 {[%clk 0:00:25.4]} 61. d6+ {[%clk
0:00:07.8]} 61... Kc6 {[%clk 0:00:26.1]} 62. axb6 {[%clk 0:00:07.2]} 62... Kxb6
{[%clk 0:00:28]} 63. Ke4 {[%clk 0:00:08.7]} 63... Kc6 {[%clk 0:00:27.5]} 64.
Kxe5 {[%clk 0:00:09.6]} 64... a5 {[%clk 0:00:28.9]} 65. Nd4+ {[%clk 0:00:10.4]}
65... Kd7 {[%clk 0:00:29.4]} 66. Nb3 {[%clk 0:00:10.2]} 66... f6+ {[%clk
0:00:26.8]} 67. Kd5 {[%clk 0:00:10.4]} 67... f5 {[%clk 0:00:28.2]} 68. Nc5+
{[%clk 0:00:10.1]} 68... Ke8 {[%clk 0:00:28.8]} 69. d7+ {[%clk 0:00:10.7]} 69...
Ke7 {[%clk 0:00:29.5]} 70. Kc6 {[%clk 0:00:12]} 70... Nf6 {[%clk 0:00:26.2]} 71.
h7 {[%clk 0:00:13.3]} 1-0

[Event "*** MasterClass Titled Tuesday Blitz"]
[Site "Chess.com"]
[Date "2017.11.07"]
[Round "8"]
[White "Vamostodorecto"]
[Black "Abdodi"]
[Result "1-0"]
[WhiteElo "2294"]
[BlackElo "2118"]
[TimeControl "180+2"]
[EndTime "15:50:27 PST"]
[Termination "Vamostodorecto won by checkmate"]

1. d4 {[%clk 0:03:01.9]} 1... d5 {[%clk 0:02:58.9]} 2. c4 {[%clk 0:02:49.9]}
2... c6 {[%clk 0:02:52.3]} 3. Nc3 {[%clk 0:02:50.4]} 3... Nf6 {[%clk 0:02:49.7]}
4. Nf3 {[%clk 0:02:52]} 4... e6 {[%clk 0:02:43.6]} 5. e3 {[%clk 0:02:52.6]} 5...
Be7 {[%clk 0:02:39.1]} 6. Bd3 {[%clk 0:02:53.7]} 6... Nbd7 {[%clk 0:02:31]} 7.
O-O {[%clk 0:02:53.4]} 7... O-O {[%clk 0:02:27.5]} 8. e4 {[%clk 0:02:54.3]} 8...
dxe4 {[%clk 0:02:18.2]} 9. Nxe4 {[%clk 0:02:56.2]} 9... Nxe4 {[%clk 0:02:18.7]}
10. Bxe4 {[%clk 0:02:54.6]} 10... Nf6 {[%clk 0:02:19.5]} 11. Bc2 {[%clk
0:02:56.2]} 11... c5 {[%clk 0:02:16.9]} 12. Bg5 {[%clk 0:02:45.2]} 12... h6
{[%clk 0:02:03.3]} 13. Bh4 {[%clk 0:02:44.2]} 13... cxd4 {[%clk 0:01:53.5]} 14.
Qd3 {[%clk 0:02:43]} 14... g5 {[%clk 0:01:41.1]} 15. Bg3 {[%clk 0:02:31.4]}
15... Bc5 {[%clk 0:01:40.2]} 16. Be5 {[%clk 0:02:31.4]} 16... Kg7 {[%clk
0:01:28.2]} 17. Qh7# {[%clk 0:02:29.6]} 1-0

[Event "*** MasterClass Titled Tuesday Blitz"]
[Site "Chess.com"]
[Date "2017.11.07"]
[Round "8"]
[White "MITerryble"]
[Black "FairChess_on_YouTube"]
[Result "1/2-1/2"]
[WhiteElo "2646"]
[BlackElo "2784"]
[TimeControl "180+2"]
[EndTime "15:52:23 PST"]
[Termination "Game drawn by agreement"]

1. d4 {[%clk 0:03:01.9]} 1... d5 {[%clk 0:03:00.7]} 2. Nf3 {[%clk 0:03:02.8]}
2... Nf6 {[%clk 0:03:01.3]} 3. c4 {[%clk 0:03:03.5]} 3... c6 {[%clk 0:03:02.2]}
4. Nc3 {[%clk 0:03:03.7]} 4... a6 {[%clk 0:03:03]} 5. cxd5 {[%clk 0:03:00.7]}
5... cxd5 {[%clk 0:03:03.7]} 6. Bf4 {[%clk 0:02:59.6]} 6... Nc6 {[%clk
0:03:04.7]} 7. e3 {[%clk 0:03:00.8]} 7... Bg4 {[%clk 0:03:04.5]} 8. Be2 {[%clk
0:02:59.9]} 8... e6 {[%clk 0:03:05.6]} 9. O-O {[%clk 0:02:59.8]} 9... Bxf3
{[%clk 0:03:05.3]} 10. Bxf3 {[%clk 0:03:00.6]} 10... Bd6 {[%clk 0:03:06.9]} 11.
Bg5 {[%clk 0:03:01.6]} 11... O-O {[%clk 0:03:06.2]} 12. Rc1 {[%clk 0:02:58.8]}
12... h6 {[%clk 0:03:05.9]} 13. Bh4 {[%clk 0:02:59.2]} 13... Rc8 {[%clk
0:03:05.6]} 14. Na4 {[%clk 0:02:54.6]} 14... g5 {[%clk 0:02:58.5]} 15. Bg3
{[%clk 0:02:55]} 15... Bxg3 {[%clk 0:02:59.3]} 16. hxg3 {[%clk 0:02:56.1]} 16...
Qd6 {[%clk 0:03:00]} 17. Qb3 {[%clk 0:02:26.3]} 17... Rc7 {[%clk 0:02:50.7]} 18.
Nc5 {[%clk 0:02:10.1]} 18... Na5 {[%clk 0:02:27.2]} 19. Qb4 {[%clk 0:02:10.3]}
19... Nc6 {[%clk 0:02:01.1]} 20. Qb6 {[%clk 0:02:04.5]} 20... Rb8 {[%clk
0:01:47.7]} 21. Rc3 {[%clk 0:01:57.4]} 21... Nd7 {[%clk 0:01:45.9]} 22. Nxd7
{[%clk 0:01:56.9]} 22... Rxd7 {[%clk 0:01:47.8]} 23. Rfc1 {[%clk 0:01:54.6]}
23... Ne5 {[%clk 0:01:39.9]} 1/2-1/2

[Event "*** MasterClass Titled Tuesday Blitz"]
[Site "Chess.com"]
[Date "2017.11.07"]
[Round "8"]
[White "Too_Stupid_To_Play"]
[Black "nicegg"]
[Result "0-1"]
[WhiteElo "2198"]
[BlackElo "2005"]
[TimeControl "180+2"]
[EndTime "15:52:26 PST"]
[Termination "nicegg won by resignation"]

1. Nf3 {[%clk 0:03:01.9]} 1... d5 {[%clk 0:02:53.2]} 2. c4 {[%clk 0:03:03.8]}
2... d4 {[%clk 0:02:53.9]} 3. g3 {[%clk 0:03:04.3]} 3... c5 {[%clk 0:02:54.9]}
4. Bg2 {[%clk 0:03:06.2]} 4... Nc6 {[%clk 0:02:56]} 5. O-O {[%clk 0:03:06.9]}
5... e5 {[%clk 0:02:57]} 6. d3 {[%clk 0:03:08.5]} 6... Be7 {[%clk 0:02:57.8]} 7.
a3 {[%clk 0:03:09.9]} 7... Bg4 {[%clk 0:02:54.7]} 8. h3 {[%clk 0:03:10.2]} 8...
Be6 {[%clk 0:02:53.7]} 9. Bd2 {[%clk 0:03:05.7]} 9... Qd7 {[%clk 0:02:53.9]} 10.
b4 {[%clk 0:03:06.3]} 10... f6 {[%clk 0:02:34.5]} 11. b5 {[%clk 0:03:02.5]}
11... Nd8 {[%clk 0:02:31.3]} 12. Kh2 {[%clk 0:03:02.6]} 12... g5 {[%clk
0:02:28]} 13. a4 {[%clk 0:02:58.1]} 13... h5 {[%clk 0:02:20.2]} 14. h4 {[%clk
0:02:56]} 14... gxh4 {[%clk 0:02:12.8]} 15. Nxh4 {[%clk 0:02:56.5]} 15... Nh6
{[%clk 0:02:11.4]} 16. f4 {[%clk 0:02:07.9]} 16... Ng4+ {[%clk 0:02:04.7]} 17.
Kg1 {[%clk 0:02:07.6]} 17... f5 {[%clk 0:01:58.4]} 18. Ng6 {[%clk 0:02:07.7]}
18... Rg8 {[%clk 0:01:52.2]} 19. Nxe7 {[%clk 0:02:05.6]} 19... Qxe7 {[%clk
0:01:50.6]} 20. fxe5 {[%clk 0:02:06.6]} 20... h4 {[%clk 0:01:37.6]} 21. Rf3
{[%clk 0:01:59.9]} 21... Nxe5 {[%clk 0:01:27.9]} 22. Bf4 {[%clk 0:01:50.7]}
22... Nxf3+ {[%clk 0:01:22.9]} 23. Bxf3 {[%clk 0:01:51.1]} 23... hxg3 {[%clk
0:01:21.7]} 24. Kg2 {[%clk 0:01:52.4]} 24... Qh4 {[%clk 0:01:21.1]} 25. Qh1
{[%clk 0:01:46.4]} 25... Qxf4 {[%clk 0:01:18.8]} 26. Qh5+ {[%clk 0:01:47.4]}
26... Bf7 {[%clk 0:01:16.5]} 27. Qh7 {[%clk 0:01:46.5]} 27... Qe3 {[%clk
0:01:05]} 0-1

[Event "*** MasterClass Titled Tuesday Blitz"]
[Site "Chess.com"]
[Date "2017.11.07"]
[Round "8"]
[White "bugsbunny444"]
[Black "AbdAlAgathos"]
[Result "1-0"]
[WhiteElo "2426"]
[BlackElo "2224"]
[TimeControl "180+2"]
[EndTime "15:52:37 PST"]
[Termination "bugsbunny444 won by resignation"]

1. Nf3 {[%clk 0:03:01.9]} 1... Nf6 {[%clk 0:03:00]} 2. c4 {[%clk 0:03:03.2]}
2... g6 {[%clk 0:03:01.3]} 3. b4 {[%clk 0:03:04.8]} 3... Bg7 {[%clk 0:02:53.9]}
4. Bb2 {[%clk 0:03:05.8]} 4... a5 {[%clk 0:02:51.9]} 5. b5 {[%clk 0:03:06.4]}
5... c5 {[%clk 0:02:53.1]} 6. g3 {[%clk 0:03:06.8]} 6... O-O {[%clk 0:02:50.3]}
7. Bg2 {[%clk 0:03:08.1]} 7... d5 {[%clk 0:02:48.2]} 8. cxd5 {[%clk 0:03:08.3]}
8... Nxd5 {[%clk 0:02:44.4]} 9. Bxg7 {[%clk 0:03:10.2]} 9... Kxg7 {[%clk
0:02:45.2]} 10. Qb3 {[%clk 0:03:11.8]} 10... a4 {[%clk 0:02:34.5]} 11. Qb2+
{[%clk 0:03:12]} 11... Kg8 {[%clk 0:02:36]} 12. O-O {[%clk 0:03:09.3]} 12... Nb6
{[%clk 0:02:31.9]} 13. Rc1 {[%clk 0:02:58.3]} 13... N8d7 {[%clk 0:02:21]} 14. d3
{[%clk 0:02:48.1]} 14... e6 {[%clk 0:02:11.5]} 15. a3 {[%clk 0:02:49.1]} 15...
Qe7 {[%clk 0:02:09.6]} 16. Nbd2 {[%clk 0:02:50.1]} 16... Nf6 {[%clk 0:02:03.3]}
17. Rc2 {[%clk 0:02:40.4]} 17... Bd7 {[%clk 0:01:59.3]} 18. Rac1 {[%clk
0:02:39.6]} 18... Rfc8 {[%clk 0:01:58.8]} 19. Ne5 {[%clk 0:02:36.3]} 19... Ra5
{[%clk 0:01:52]} 20. Nxd7 {[%clk 0:02:32.4]} 20... Nbxd7 {[%clk 0:01:47.2]} 21.
Bxb7 {[%clk 0:02:31.5]} 21... Rb8 {[%clk 0:01:48.4]} 22. Bc6 {[%clk 0:02:31.4]}
22... Nd5 {[%clk 0:00:53.8]} 23. Nc4 {[%clk 0:02:21.6]} 23... Ra7 {[%clk
0:00:49.8]} 24. Ne5 {[%clk 0:02:16.4]} 24... N7f6 {[%clk 0:00:23.6]} 25. Bxd5
{[%clk 0:02:13.6]} 25... exd5 {[%clk 0:00:19.8]} 26. Nc6 {[%clk 0:02:14.8]}
26... Qb7 {[%clk 0:00:20.9]} 27. Qxf6 {[%clk 0:02:11.1]} 1-0

[Event "*** MasterClass Titled Tuesday Blitz"]
[Site "Chess.com"]
[Date "2017.11.07"]
[Round "8"]
[White "MagnusCarlsen"]
[Black "Salem-AR"]
[Result "1-0"]
[WhiteElo "3040"]
[BlackElo "2793"]
[TimeControl "180+2"]
[EndTime "15:53:56 PST"]
[Termination "MagnusCarlsen won by resignation"]

1. d4 {[%clk 0:03:01.9]} 1... Nf6 {[%clk 0:03:01]} 2. Bf4 {[%clk 0:03:02.1]}
2... g6 {[%clk 0:03:01.8]} 3. Nc3 {[%clk 0:02:58.9]} 3... d5 {[%clk 0:03:03.1]}
4. Nf3 {[%clk 0:03:00.5]} 4... Bg7 {[%clk 0:03:04.3]} 5. e3 {[%clk 0:03:02.1]}
5... O-O {[%clk 0:03:05.3]} 6. Be2 {[%clk 0:03:03.6]} 6... Bg4 {[%clk
0:03:04.9]} 7. Ne5 {[%clk 0:02:53.9]} 7... Bxe2 {[%clk 0:03:05.9]} 8. Qxe2
{[%clk 0:02:55.8]} 8... c6 {[%clk 0:03:06.7]} 9. h4 {[%clk 0:02:55.5]} 9... h5
{[%clk 0:02:56.1]} 10. g4 {[%clk 0:02:37.6]} 10... Nbd7 {[%clk 0:02:57.2]} 11.
f3 {[%clk 0:02:25.5]} 11... e6 {[%clk 0:02:31.1]} 12. O-O-O {[%clk 0:02:26.1]}
12... Qe7 {[%clk 0:02:32.5]} 13. Rdg1 {[%clk 0:02:26.2]} 13... hxg4 {[%clk
0:02:15.3]} 14. fxg4 {[%clk 0:02:05.9]} 14... Nxe5 {[%clk 0:02:13.4]} 15. Bxe5
{[%clk 0:02:07.8]} 15... Nd7 {[%clk 0:02:03.7]} 16. Bxg7 {[%clk 0:02:04]} 16...
Kxg7 {[%clk 0:02:05.6]} 17. g5 {[%clk 0:02:00.2]} 17... Rh8 {[%clk 0:02:05]} 18.
e4 {[%clk 0:02:01.8]} 18... c5 {[%clk 0:01:52.5]} 19. Qf2 {[%clk 0:01:58.8]}
19... dxe4 {[%clk 0:01:40.1]} 20. Nxe4 {[%clk 0:01:59.5]} 20... cxd4 {[%clk
0:01:41.8]} 21. Qxd4+ {[%clk 0:02:01.4]} 21... e5 {[%clk 0:01:42.8]} 22. Qe3
{[%clk 0:02:01.1]} 22... Rac8 {[%clk 0:01:33.1]} 23. Kb1 {[%clk 0:01:51.8]}
23... Rc4 {[%clk 0:01:22.1]} 24. Qe2 {[%clk 0:01:48.3]} 24... Qb4 {[%clk
0:00:57]} 25. Re1 {[%clk 0:01:37.2]} 25... Rc6 {[%clk 0:00:47.1]} 26. a3 {[%clk
0:01:34.7]} 26... Qe7 {[%clk 0:00:48]} 27. h5 {[%clk 0:01:33.4]} 27... Rcc8
{[%clk 0:00:33.5]} 28. h6+ {[%clk 0:01:25.9]} 28... Kh7 {[%clk 0:00:34.5]} 29.
Rhf1 {[%clk 0:01:27.4]} 29... Rhf8 {[%clk 0:00:32.8]} 30. Qb5 {[%clk 0:01:28.3]}
30... Rc7 {[%clk 0:00:29.8]} 31. Rd1 {[%clk 0:01:28.9]} 31... Nc5 {[%clk
0:00:28.9]} 32. Nf6+ {[%clk 0:01:29.5]} 32... Kh8 {[%clk 0:00:30.6]} 33. Nd5
{[%clk 0:01:31.3]} 33... a6 {[%clk 0:00:25.1]} 34. Qb6 {[%clk 0:01:32.1]} 1-0

[Event "*** MasterClass Titled Tuesday Blitz"]
[Site "Chess.com"]
[Date "2017.11.07"]
[Round "8"]
[White "StoreySniper"]
[Black "ChadBiryani"]
[Result "1-0"]
[WhiteElo "2298"]
[BlackElo "2169"]
[TimeControl "180+2"]
[EndTime "15:54:19 PST"]
[Termination "StoreySniper won by resignation"]

1. e4 {[%clk 0:03:01.9]} 1... c5 {[%clk 0:02:59.2]} 2. Nf3 {[%clk 0:03:01.6]}
2... d6 {[%clk 0:03:00.6]} 3. d4 {[%clk 0:03:02.1]} 3... cxd4 {[%clk 0:03:02.5]}
4. Nxd4 {[%clk 0:03:03.4]} 4... Nf6 {[%clk 0:03:04.1]} 5. f3 {[%clk 0:03:03.6]}
5... e5 {[%clk 0:03:03.8]} 6. Nb3 {[%clk 0:03:04]} 6... d5 {[%clk 0:03:04.6]} 7.
Bg5 {[%clk 0:02:55.1]} 7... d4 {[%clk 0:02:44.4]} 8. c3 {[%clk 0:02:51.7]} 8...
Nc6 {[%clk 0:02:44.1]} 9. Bb5 {[%clk 0:02:49.3]} 9... a6 {[%clk 0:02:42.4]} 10.
Bxc6+ {[%clk 0:02:49.2]} 10... bxc6 {[%clk 0:02:44.3]} 11. cxd4 {[%clk
0:02:48.5]} 11... Bb4+ {[%clk 0:02:44.9]} 12. Nc3 {[%clk 0:02:47.9]} 12... exd4
{[%clk 0:02:38.1]} 13. Qxd4 {[%clk 0:02:47.2]} 13... Qe7 {[%clk 0:02:26.1]} 14.
Bxf6 {[%clk 0:02:45.2]} 14... gxf6 {[%clk 0:02:26.8]} 15. O-O {[%clk 0:02:32.9]}
15... Be6 {[%clk 0:02:25.2]} 16. Kh1 {[%clk 0:02:32.3]} 16... Rd8 {[%clk
0:02:13.4]} 17. Qf2 {[%clk 0:02:29.2]} 17... O-O {[%clk 0:02:12]} 18. Rad1
{[%clk 0:02:28.3]} 18... Bc4 {[%clk 0:01:58.9]} 19. Rfe1 {[%clk 0:02:26.4]}
19... a5 {[%clk 0:01:33.5]} 20. Qb6 {[%clk 0:02:17.1]} 20... Bxb3 {[%clk
0:00:42.5]} 21. axb3 {[%clk 0:02:15.6]} 21... Rc8 {[%clk 0:00:43.9]} 22. h3
{[%clk 0:02:03.5]} 22... Qe6 {[%clk 0:00:43.3]} 23. Qd4 {[%clk 0:01:37.3]} 23...
Rfd8 {[%clk 0:00:40.4]} 24. Qc4 {[%clk 0:01:27.1]} 24... Qe5 {[%clk 0:00:22.8]}
25. Rf1 {[%clk 0:01:11.3]} 25... Qf4 {[%clk 0:00:11.4]} 26. e5 {[%clk 0:00:57]}
26... Qxe5 {[%clk 0:00:06]} 27. Qg4+ {[%clk 0:00:55.8]} 27... Qg5 {[%clk
0:00:06.1]} 28. Ne4 {[%clk 0:00:50.3]} 28... Kg7 {[%clk 0:00:03.3]} 29. Nxg5
{[%clk 0:00:50.1]} 1-0

[Event "*** MasterClass Titled Tuesday Blitz"]
[Site "Chess.com"]
[Date "2017.11.07"]
[Round "8"]
[White "dretch"]
[Black "ChainsOfFantasia"]
[Result "1-0"]
[WhiteElo "2595"]
[BlackElo "2496"]
[TimeControl "180+2"]
[EndTime "15:54:21 PST"]
[Termination "dretch won by resignation"]

1. d4 {[%clk 0:03:01.9]} 1... Nf6 {[%clk 0:02:58.8]} 2. c4 {[%clk 0:03:03]} 2...
e6 {[%clk 0:03:00.7]} 3. Nc3 {[%clk 0:03:04.1]} 3... d5 {[%clk 0:03:02.5]} 4.
cxd5 {[%clk 0:03:04.9]} 4... Nxd5 {[%clk 0:03:04.4]} 5. e4 {[%clk 0:03:04.2]}
5... Nxc3 {[%clk 0:03:05.5]} 6. bxc3 {[%clk 0:03:06.1]} 6... c5 {[%clk
0:03:07.1]} 7. Nf3 {[%clk 0:03:07.8]} 7... cxd4 {[%clk 0:03:09]} 8. cxd4 {[%clk
0:03:08.5]} 8... Bb4+ {[%clk 0:03:10.6]} 9. Bd2 {[%clk 0:03:10.1]} 9... Bxd2+
{[%clk 0:03:12.2]} 10. Qxd2 {[%clk 0:03:12]} 10... O-O {[%clk 0:03:13.5]} 11.
Bc4 {[%clk 0:03:13.5]} 11... b6 {[%clk 0:03:14.8]} 12. d5 {[%clk 0:03:14.7]}
12... Ba6 {[%clk 0:03:15]} 13. Bxa6 {[%clk 0:03:12.1]} 13... Nxa6 {[%clk
0:03:16.9]} 14. d6 {[%clk 0:03:10.8]} 14... e5 {[%clk 0:03:01.3]} 15. O-O {[%clk
0:03:09.4]} 15... Qf6 {[%clk 0:03:00.4]} 16. Rad1 {[%clk 0:02:59.7]} 16... Rad8
{[%clk 0:02:53.1]} 17. Qd5 {[%clk 0:02:59.5]} 17... Rfe8 {[%clk 0:02:49.5]} 18.
h3 {[%clk 0:02:43.1]} 18... Nc5 {[%clk 0:02:46.2]} 19. Rd2 {[%clk 0:02:36]}
19... Qe6 {[%clk 0:02:47.5]} 20. Qc6 {[%clk 0:02:22.7]} 20... Rc8 {[%clk
0:02:31.7]} 21. Qd5 {[%clk 0:02:09.5]} 21... Qxd5 {[%clk 0:02:31.3]} 22. Rxd5
{[%clk 0:02:10.6]} 22... Rcd8 {[%clk 0:02:30.7]} 23. Nxe5 {[%clk 0:02:07.4]}
23... Re6 {[%clk 0:02:06.9]} 24. Rc1 {[%clk 0:00:44.9]} 24... Rexd6 {[%clk
0:02:00.4]} 25. Nc6 {[%clk 0:00:18.2]} 25... Nxe4 {[%clk 0:01:35.4]} 26. Nxd8
{[%clk 0:00:06.9]} 26... Rxd5 {[%clk 0:01:35.9]} 27. Rc8 {[%clk 0:00:08.1]}
27... h5 {[%clk 0:01:19.5]} 28. Ra8 {[%clk 0:00:07.2]} 28... Rd1+ {[%clk
0:01:18.3]} 29. Kh2 {[%clk 0:00:07.9]} 29... Nxf2 {[%clk 0:01:19.5]} 30. Ne6+
{[%clk 0:00:07.3]} 30... Kh7 {[%clk 0:01:19.9]} 31. Ng5+ {[%clk 0:00:07.8]}
31... Kg6 {[%clk 0:01:20.8]} 32. Nf3 {[%clk 0:00:09.3]} 32... Rd7 {[%clk
0:01:17.9]} 33. Ne5+ {[%clk 0:00:09.3]} 33... Kf5 {[%clk 0:01:16.4]} 34. Nxd7
{[%clk 0:00:11.2]} 34... g5 {[%clk 0:01:15.6]} 35. Rxa7 {[%clk 0:00:12]} 35...
Kf4 {[%clk 0:01:15.8]} 36. Nxb6 {[%clk 0:00:12.2]} 36... f5 {[%clk 0:01:17.7]}
37. Ra3 {[%clk 0:00:10.8]} 37... h4 {[%clk 0:01:17.3]} 38. Rf3+ {[%clk
0:00:10.7]} 1-0

[Event "*** MasterClass Titled Tuesday Blitz"]
[Site "Chess.com"]
[Date "2017.11.07"]
[Round "8"]
[White "Maitreia"]
[Black "NateSolon"]
[Result "1-0"]
[WhiteElo "2476"]
[BlackElo "2379"]
[TimeControl "180+2"]
[EndTime "15:54:22 PST"]
[Termination "Maitreia won by resignation"]

1. c4 {[%clk 0:03:01.9]} 1... c6 {[%clk 0:02:59]} 2. g3 {[%clk 0:03:02.9]} 2...
d5 {[%clk 0:02:59.7]} 3. Nf3 {[%clk 0:03:04.8]} 3... Nf6 {[%clk 0:02:59]} 4. Bg2
{[%clk 0:03:06.1]} 4... dxc4 {[%clk 0:02:56.3]} 5. O-O {[%clk 0:03:04.6]} 5...
Be6 {[%clk 0:02:55.2]} 6. Ng5 {[%clk 0:03:04.6]} 6... Bf5 {[%clk 0:02:52.2]} 7.
Na3 {[%clk 0:03:03.7]} 7... e6 {[%clk 0:02:34.7]} 8. Nxc4 {[%clk 0:03:03.4]}
8... Be7 {[%clk 0:02:35.8]} 9. Qb3 {[%clk 0:02:56.6]} 9... Qc8 {[%clk 0:01:58]}
10. d3 {[%clk 0:02:52.1]} 10... O-O {[%clk 0:01:55.7]} 11. Bd2 {[%clk
0:02:45.7]} 11... Nbd7 {[%clk 0:01:51.5]} 12. Rfc1 {[%clk 0:02:44.7]} 12... Qc7
{[%clk 0:01:03]} 13. Nf3 {[%clk 0:02:38.7]} 13... e5 {[%clk 0:01:00.7]} 14. Ba5
{[%clk 0:02:31.4]} 14... b6 {[%clk 0:00:55.1]} 15. Bc3 {[%clk 0:02:28.2]} 15...
Be6 {[%clk 0:00:41.2]} 16. Qc2 {[%clk 0:02:23.9]} 16... Nd5 {[%clk 0:00:38.3]}
17. Bxe5 {[%clk 0:02:17.3]} 17... Nxe5 {[%clk 0:00:38.6]} 18. Ncxe5 {[%clk
0:02:19.2]} 18... c5 {[%clk 0:00:38.1]} 19. a3 {[%clk 0:02:18]} 19... Bf6 {[%clk
0:00:38.4]} 20. Nc4 {[%clk 0:02:18.7]} 20... Rad8 {[%clk 0:00:38.5]} 21. Rab1
{[%clk 0:02:16.8]} 21... Rfe8 {[%clk 0:00:39.2]} 22. e4 {[%clk 0:02:14.5]} 22...
Ne7 {[%clk 0:00:37.1]} 23. e5 {[%clk 0:02:15.8]} 23... Bxc4 {[%clk 0:00:38.1]}
24. exf6 {[%clk 0:02:02.8]} 24... Bxd3 {[%clk 0:00:38.9]} 25. fxe7 {[%clk
0:02:03.5]} 25... Bxc2 {[%clk 0:00:39.3]} 26. exd8=Q {[%clk 0:02:05.4]} 26...
Qxd8 {[%clk 0:00:37.6]} 27. Rxc2 {[%clk 0:02:06.4]} 27... h6 {[%clk 0:00:35.7]}
28. Rd2 {[%clk 0:02:05.7]} 28... Qf6 {[%clk 0:00:36]} 29. Rbd1 {[%clk 0:02:06]}
29... g6 {[%clk 0:00:26]} 30. h4 {[%clk 0:02:06]} 30... Kg7 {[%clk 0:00:25.9]}
31. Nh2 {[%clk 0:01:55.4]} 31... Qe6 {[%clk 0:00:16.3]} 32. Bd5 {[%clk
0:01:49.7]} 32... Qe5 {[%clk 0:00:15.4]} 33. Nf3 {[%clk 0:01:48.2]} 33... Qf6
{[%clk 0:00:15.8]} 34. b3 {[%clk 0:01:46.7]} 34... Qc3 {[%clk 0:00:15.2]} 35. a4
{[%clk 0:01:42.5]} 35... Rd8 {[%clk 0:00:14.5]} 36. Kg2 {[%clk 0:01:43.4]} 36...
Rd6 {[%clk 0:00:14.4]} 37. Bc4 {[%clk 0:01:44.2]} 37... Rf6 {[%clk 0:00:15.3]}
38. Rd3 {[%clk 0:01:43.6]} 38... Qb2 {[%clk 0:00:13.8]} 39. R1d2 {[%clk
0:01:44.2]} 39... Qc1 {[%clk 0:00:15]} 40. Rd6 {[%clk 0:01:39.6]} 40... Rxd6
{[%clk 0:00:08.8]} 41. Rxd6 {[%clk 0:01:41.5]} 41... Qc3 {[%clk 0:00:08.9]} 42.
Rd7 {[%clk 0:01:41]} 1-0